fUST/lending_fUST_20251011
["ID","MTS","AMOUNT","RATE_DAILY","PERIOD"]
[390656327,1760112643391,-300.0,0.00027397,2]
[390656329,1760112643401,-300.0,0.00027397,2]
[390656331,1760112643412,-300.0,0.00027397,2]
[390656333,1760112643421,-300.0,0.00027397,2]
[390656335,1760112643432,-445.91834033,0.00027397,2]
[390656337,1760112643441,-500.0,0.00027397,30]
[390656339,1760112643451,-500.0,0.00027397,30]
[390656341,1760112643461,-500.0,0.00027397,30]
[390656343,1760112643470,-609.21797492,0.00027397,30]
[390656345,1760112643479,-522.62,0.00027397,60]
[390656347,1760112643488,-522.62,0.00027397,60]
[390656349,1760112643498,-522.62,0.00027397,60]
[390656351,1760112643507,-522.62,0.00027397,60]
[390656353,1760112643517,-520.0,0.00027397,3]
[390656355,1760112643526,-1000.0,0.00027397,2]
[390656357,1760112643538,-1000.0,0.00027397,2]
[390656359,1760112643557,-1000.0,0.00027397,2]
[390656361,1760112643567,-500.0,0.00027397,2]
[390656363,1760112643581,-500.0,0.00027397,2]
[390656365,1760112643591,-500.0,0.00027397,2]
[390656367,1760112643601,-500.0,0.00027397,2]
[390656369,1760112643610,-334.11387175,0.00027397,2]
[390656371,1760112643620,-500.0,0.00027397,60]
[390656373,1760112643630,-500.0,0.00027397,60]
[390656375,1760112643639,-500.0,0.00027397,60]
[390656377,1760112643649,-500.0,0.00027397,60]
[390656379,1760112643659,-500.0,0.00027397,60]
[390656381,1760112643669,-500.0,0.00027397,60]
[390656383,1760112643679,-500.0,0.00027397,60]
[390656385,1760112643688,-500.0,0.00027397,60]
[390656387,1760112643698,-500.0,0.00027397,60]
[390656390,1760112643708,-500.0,0.00027397,60]
[390656392,1760112643718,-500.0,0.00027397,60]
[390656393,1760112643728,-500.0,0.00027397,60]
[390656395,1760112643738,-282.75052566,0.00027397,60]
[390656397,1760112643748,-764.94,0.00027397,2]
[390656399,1760112643758,-764.94,0.00027397,2]
[390656401,1760112643768,-764.94,0.00027397,2]
[390656403,1760112643778,-764.94,0.00027397,2]
[390656405,1760112643787,-764.94,0.00027397,2]
[390656407,1760112643800,-764.94,0.00027397,2]
[390656409,1760112643810,-764.94,0.00027397,2]
[390656411,1760112643820,-764.94,0.00027397,2]
[390656414,1760112643830,-764.94,0.00027397,2]
[390656415,1760112643839,-764.94,0.00027397,2]
[390656417,1760112643849,-764.94,0.00027397,2]
[390656420,1760112643859,-764.94,0.00027397,2]
[390656422,1760112643869,-764.94,0.00027397,2]
[390656424,1760112643879,-764.94,0.00027397,2]
[390656425,1760112643888,-764.94,0.00027397,2]
[390656427,1760112643898,-764.94,0.00027397,2]
[390656429,1760112643907,-764.94,0.00027397,2]
[390656431,1760112643917,-764.94,0.00027397,2]
[390656433,1760112643927,-764.94,0.00027397,2]
[390656435,1760112643936,-764.94,0.00027397,2]
[390656437,1760112643945,-764.94,0.00027397,2]
[390656439,1760112643955,-764.94,0.00027397,2]
[390656441,1760112643964,-764.94,0.00027397,2]
[390656443,1760112643974,-765.14133715,0.00027397,2]
[390656445,1760112643984,-500.0,0.00027397,60]
[390656447,1760112643993,-500.0,0.00027397,60]
[390656449,1760112644003,-500.0,0.00027397,60]
[390656451,1760112644012,-500.0,0.00027397,60]
[390656453,1760112644022,-500.0,0.00027397,60]
[390656455,1760112644031,-500.0,0.00027397,60]
[390656457,1760112644041,-500.0,0.00027397,60]
[390656459,1760112644053,-500.0,0.00027397,60]
[390656461,1760112644063,-500.0,0.00027397,60]
[390656463,1760112644072,-500.0,0.00027397,60]
[390656465,1760112644083,-500.0,0.00027397,60]
[390656467,1760112644092,-654.46,0.00027397,60]
[390656469,1760112644102,-654.46,0.00027397,60]
[390656471,1760112644111,-654.46,0.00027397,60]
[390656473,1760112644120,-654.46,0.00027397,60]
[390656475,1760112644130,-654.46,0.00027397,60]
[390656477,1760112644139,-654.46,0.00027397,60]
[390656479,1760112644148,-654.46,0.00027397,60]
[390656481,1760112644157,-654.46,0.00027397,60]
[390656483,1760112644167,-654.46,0.00027397,60]
[390656485,1760112644177,-654.46,0.00027397,60]
[390656487,1760112644186,-654.46,0.00027397,60]
[390656489,1760112644196,-654.46,0.00027397,60]
[390656491,1760112644205,-654.46,0.00027397,60]
[390656493,1760112644215,-654.46,0.00027397,60]
[390656495,1760112644225,-654.46,0.00027397,60]
[390656497,1760112644234,-654.46,0.00027397,60]
[390656499,1760112644244,-654.46,0.00027397,60]
[390656501,1760112644254,-654.46,0.00027397,60]
[390656503,1760112644263,-654.46,0.00027397,60]
[390656505,1760112644273,-654.46,0.00027397,60]
[390656507,1760112644283,-654.46,0.00027397,60]
[390656509,1760112644292,-654.46,0.00027397,60]
[390656511,1760112644304,-654.46,0.00027397,60]
[390656513,1760112644314,-654.61897305,0.00027397,60]
[390656515,1760112644323,-500.0,0.00027397,60]
[390656517,1760112644332,-500.0,0.00027397,60]
[390656519,1760112644342,-500.0,0.00027397,60]
[390656521,1760112644351,-500.0,0.00027397,60]
[390656523,1760112644361,-330.30398943,0.00027397,60]
[390656525,1760112644371,-941.94,0.00027397,60]
[390656527,1760112644381,-941.94,0.00027397,60]
[390656529,1760112644391,-941.94,0.00027397,60]
[390656531,1760112644400,-941.94,0.00027397,60]
[390656533,1760112644410,-941.94,0.00027397,60]
[390656535,1760112644419,-941.94,0.00027397,60]
[390656537,1760112644428,-941.94,0.00027397,60]
[390656539,1760112644438,-941.94,0.00027397,60]
[390656541,1760112644447,-941.94,0.00027397,60]
[390656543,1760112644457,-941.94,0.00027397,60]
[390656545,1760112644466,-941.94,0.00027397,60]
[390656546,1760112644475,-941.94,0.00027397,60]
[390656548,1760112644485,-941.94,0.00027397,60]
[390656551,1760112644494,-941.94,0.00027397,60]
[390656553,1760112644504,-941.94,0.00027397,60]
[390656554,1760112644514,-941.94,0.00027397,60]
[390656556,1760112644523,-941.94,0.00027397,60]
[390656558,1760112644532,-941.94,0.00027397,60]
[390656560,1760112644544,-941.94,0.00027397,60]
[390656562,1760112644558,-941.94,0.00027397,60]
[390656564,1760112644568,-941.94,0.00027397,60]
[390656566,1760112644579,-941.94,0.00027397,60]
[390656568,1760112644589,-941.94,0.00027397,60]
[390656570,1760112644599,-942.16636747,0.00027397,60]
[390656572,1760112644608,-586.60738582,0.00027397,60]
[390656574,1760112644620,-500.0,0.00027397,60]
[390656576,1760112644630,-500.0,0.00027397,60]
[390656578,1760112644639,-500.0,0.00027397,60]
[390656580,1760112644648,-500.0,0.00027397,60]
[390656582,1760112644658,-500.0,0.00027397,60]
[390656584,1760112644667,-500.0,0.00027397,60]
[390656586,1760112644676,-500.0,0.00027397,60]
[390656588,1760112644685,-500.0,0.00027397,60]
[390656590,1760112644695,-500.0,0.00027397,60]
[390656592,1760112644704,-500.0,0.00027397,60]
[390656594,1760112644713,-500.0,0.00027397,60]
[390656596,1760112644722,-500.0,0.00027397,60]
[390656598,1760112644731,-494.59191119,0.00027397,60]
[390656600,1760112644740,-500.0,0.00027397,2]
[390656602,1760112644750,-528.87535178,0.00027397,2]
[390656604,1760112644759,-500.61681914,0.00027397,2]
[390656606,1760112644769,-1730.14,0.00027397,60]
[390656608,1760112644778,-1730.14,0.00027397,60]
[390656610,1760112644787,-1730.14,0.00027397,60]
[390656612,1760112644796,-1730.14,0.00027397,60]
[390656614,1760112644807,-1730.14,0.00027397,60]
[390656616,1760112644816,-1730.14,0.00027397,60]
[390656618,1760112644826,-1730.14,0.00027397,60]
[390656620,1760112644835,-1730.14,0.00027397,60]
[390656621,1760112644844,-1730.14,0.00027397,60]
[390656623,1760112644853,-1730.14,0.00027397,60]
[390656625,1760112644863,-1730.14,0.00027397,60]
[390656627,1760112644872,-1730.14,0.00027397,60]
[390656629,1760112644881,-1730.14,0.00027397,60]
[390656631,1760112644890,-1730.14,0.00027397,60]
[390656633,1760112644899,-1730.14,0.00027397,60]
[390656635,1760112644908,-1730.14,0.00027397,60]
[390656637,1760112644917,-1730.14,0.00027397,60]
[390656639,1760112644926,-1730.14,0.00027397,60]
[390656641,1760112644935,-1730.14,0.00027397,60]
[390656643,1760112644945,-1730.14,0.00027397,60]
[390656644,1760112644954,-1730.14,0.00027397,60]
[390656646,1760112644963,-1730.14,0.00027397,60]
[390656648,1760112644973,-1730.14,0.00027397,60]
[390656651,1760112644983,-800.0,0.00027397,7]
[390656653,1760112644992,-165.91026531,0.00027397,2]
[390656655,1760112645002,-5362.33,0.000274,2]
[390656657,1760112645011,-200.0,0.000274,14]
[390656659,1760112645021,-157.50028686,0.000274,4]
[390656661,1760112645031,-157.5,0.000274,4]
[390656663,1760112645040,-183.75033466,0.000274,4]
[390656665,1760112645052,-183.75033466,0.000274,4]
[390656667,1760112645062,-183.75033466,0.000274,4]
[390656669,1760112645071,-183.75,0.000274,4]
[390656670,1760112645080,-186.85824031,0.000274,4]
[390656671,1760112645090,-186.85824031,0.000274,4]
[390656672,1760112645099,-186.85,0.000274,4]
[390656673,1760112645108,-163.50096027,0.000274,4]
[390656674,1760112645117,-163.50096027,0.000274,4]
[390656675,1760112645126,-163.50096027,0.000274,4]
[390656676,1760112645136,-163.50096027,0.000274,4]
[390656677,1760112645146,-163.50096027,0.000274,4]
[390656678,1760112645155,-163.50096027,0.000274,4]
[390656679,1760112645164,-163.50096027,0.000274,4]
[390656680,1760112645173,-163.5,0.000274,4]
[390656681,1760112645183,-155.3746521,0.000274,4]
[390656682,1760112645192,-155.3746521,0.000274,4]
[390656683,1760112645201,-155.3746521,0.000274,4]
[390656684,1760112645210,-155.37,0.000274,4]
[390656685,1760112645219,-161.12926884,0.000274,4]
[390656686,1760112645228,-161.12926884,0.000274,4]
[390656687,1760112645238,-161.12926884,0.000274,4]
[390656688,1760112645248,-161.12926884,0.000274,4]
[390656689,1760112645257,-161.12926884,0.000274,4]
[390656690,1760112645266,-161.12926884,0.000274,4]
[390656691,1760112645276,-161.12926884,0.000274,4]
[390656692,1760112645285,-161.12926884,0.000274,4]
[390656693,1760112645294,-161.12,0.000274,4]
[390656694,1760112645305,-108085.3129444,0.00027444,2]
[390656708,1760112645543,-160.0,0.00017864,2]
[390656710,1760112645553,-213.54252314,0.00027397,60]
[390656712,1760112645567,-1516.79210209,0.00027397,60]
[390656714,1760112645576,-1586.80789791,0.00027444,2]
[390656718,1760112645602,-151.0,0.00020492,2]
[390656720,1760112645612,-2652.62349374,0.00027444,2]
[390656722,1760112645624,-30999.54375,0.00027444,2]
[390656763,1760112645944,-151.0,0.00020492,2]
[390656765,1760112645954,-151.0,0.00020492,2]
[390656767,1760112645963,-151.0,0.00020492,2]
[390656769,1760112645972,-151.0,0.00020492,2]
[390656771,1760112645981,-2101.197705,0.00027444,2]
[390656773,1760112645992,-41000.0,0.00027444,2]
[390656831,1760112646562,-151.0,0.00020492,2]
[390656834,1760112646572,-151.0,0.00020492,2]
[390656836,1760112646583,-820689.93651998,0.00027444,2]
[390658271,1760112686153,500.0,0.00026444,120]
[390658272,1760112686973,408.8,0.00026444,120]
[390658328,1760112872663,200.0,0.00028669,120]
[390658332,1760112931590,200.0,0.00028073,120]
[390658333,1760112991636,200.0,0.00028672,120]
[390658334,1760112993345,660.09173152,0.00028767,120]
[390658355,1760113171459,200.0,0.00027899,120]
[390658363,1760113231936,200.0,0.00027935,120]
[390658364,1760113356685,321.0,0.00025185,120]
[390658365,1760113357943,321.0,0.00026445,120]
[390658366,1760113359471,321.0,0.00027767,120]
[390658367,1760113375416,1190.4,0.00028767,120]
[390658369,1760113471450,200.0,0.00028544,120]
[390658377,1760113532446,433.47,0.00028767,120]
[390658396,1760113651477,200.0,0.00028174,120]
[390658398,1760113676911,357.9726468,0.00028767,120]
[390658419,1760113688209,1510.0,0.00015571,2]
[390658478,1760113832354,-300.0,0.000156,2]
[390658479,1760113832364,-727.6,0.00017,3]
[390658521,1760113838308,-262.972272,0.00017,3]
[390658528,1760113838375,-6158.91053869,0.00017,3]
[390658530,1760113838385,-150.0,0.00017,2]
[390658532,1760113838394,-200.0,0.00017,2]
[390658534,1760113838404,-666.0,0.00017392,2]
[390658536,1760113838414,-300.0,0.00017518,2]
[390658538,1760113838423,-300.0,0.00017518,2]
[390658540,1760113838433,-2852.2792549,0.00017519,2]
[390658542,1760113838442,-172.5,0.000176,2]
[390658544,1760113838452,-414.35597104,0.000177,2]
[390658546,1760113838461,-152.89909572,0.00017841,2]
[390658548,1760113838471,-1041.66666667,0.00017925,2]
[390658550,1760113838481,-160.0,0.00017939,2]
[390658552,1760113838490,-298.03512572,0.0001794,2]
[390658554,1760113838500,-160.0,0.0001794,2]
[390658555,1760113838510,-160.0,0.0001794,2]
[390658557,1760113838524,-417.15472785,0.00018029,2]
[390658558,1760113838534,-195.0,0.000182,2]
[390658559,1760113838543,-4121.69162326,0.0001863,7]
[390658560,1760113838553,-217.5,0.000188,2]
[390658561,1760113838562,-420.0,0.00019124,2]
[390658562,1760113838574,-240.0,0.000194,2]
[390658563,1760113838583,-1098.0,0.000195,2]
[390658564,1760113838593,-1349.57,0.00019616,2]
[390658565,1760113838602,-152.89909571,0.00019736,2]
[390658566,1760113838613,-262.5,0.0002,2]
[390658567,1760113838623,-500.0,0.0002004,2]
[390658568,1760113838632,-166.66,0.00020189,2]
[390658569,1760113838644,-980.0,0.00020189,2]
[390658570,1760113838654,-2159.0,0.00020189,2]
[390658571,1760113838664,-630.0,0.00020189,2]
[390658572,1760113838673,-396.206,0.00020189,2]
[390658573,1760113838683,-414.167,0.00020189,2]
[390658574,1760113838693,-179.67658215,0.00020295,2]
[390658575,1760113838703,-581.43544685,0.00020379,2]
[390658576,1760113838713,-285.0,0.000206,2]
[390658577,1760113838722,-587.0,0.00020876,2]
[390658578,1760113838732,-1829.74016056,0.00021,5]
[390658579,1760113838741,-273.67670595,0.00021,2]
[390658580,1760113838750,-166.0870885,0.00021,10]
[390658581,1760113838760,-204.74029988,0.00021,2]
[390658582,1760113838769,-2699.14,0.00021399,2]
[390658583,1760113838781,-152.89909571,0.00021631,2]
[390658584,1760113838793,-2323.41604563,0.0002221,2]
[390658585,1760113838802,-250.0,0.00022463,2]
[390658586,1760113838812,-500.0,0.00022572,2]
[390658587,1760113838822,-823.0,0.0002279,2]
[390658588,1760113838831,-11748.09123647,0.000229,2]
[390658589,1760113838842,-500.0,0.00022973,2]
[390658590,1760113838852,-11427.16,0.0002299,10]
[390658591,1760113838862,-500.0,0.00022999,2]
[390658592,1760113838873,-215.55609706,0.00022999,2]
[390658593,1760113838891,-500.0,0.00022999,2]
[390658594,1760113838901,-234.33932104,0.00022999,2]
[390658595,1760113838910,-500.0,0.00022999,2]
[390658596,1760113838922,-610.67977382,0.00022999,2]
[390658597,1760113838933,-500.0,0.00022999,2]
[390658598,1760113838943,-180.76353567,0.00022999,2]
[390658599,1760113838952,-170.104543,0.00022999,2]
[390658600,1760113838962,-500.0,0.00022999,2]
[390658601,1760113838971,-160.0,0.00023,2]
[390658602,1760113838982,-6490.04156767,0.00023,3]
[390658603,1760113838992,-20355.64201794,0.00023,14]
[390658604,1760113839000,-418597.5117567,0.00023,7]
[390658605,1760113839010,-1041.66666667,0.00023,3]
[390658606,1760113839020,-1041.66666667,0.00023,7]
[390658607,1760113839031,-500.0,0.00023,5]
[390658608,1760113839041,-160.0,0.00023003,2]
[390658609,1760113839050,-4048.71,0.00023183,2]
[390658610,1760113839062,-980.0,0.00023189,2]
[390658611,1760113839072,-2159.0,0.00023189,2]
[390658612,1760113839082,-630.0,0.00023189,2]
[390658613,1760113839092,-411.0,0.00023189,2]
[390658614,1760113839101,-500.0,0.00023287,2]
[390658615,1760113839111,-1000.0,0.00023521,2]
[390658616,1760113839120,-152.89909571,0.00023527,2]
[390658617,1760113839129,-260.0,0.00023551,2]
[390658618,1760113839140,-1041.66666667,0.000237,7]
[390658619,1760113839150,-522.35299868,0.00024,9]
[390658620,1760113839161,-455.096,0.00024034,5]
[390658621,1760113839171,-1500.0,0.00024068,2]
[390658622,1760113839181,-360.0,0.00024098,2]
[390658623,1760113839191,-200.0,0.000241,7]
[390658624,1760113839201,-1041.66666667,0.000244,7]
[390658625,1760113839211,-2000.0,0.00024616,2]
[390658626,1760113839220,-460.0,0.00024646,2]
[390658627,1760113839232,-500.0,0.00024649,2]
[390658628,1760113839241,-500.0,0.00024649,2]
[390658629,1760113839251,-500.0,0.00024649,2]
[390658630,1760113839260,-500.0,0.00024649,2]
[390658631,1760113839270,-500.0,0.00024649,2]
[390658632,1760113839284,-500.0,0.00024649,2]
[390658633,1760113839293,-10572.96241187,0.00024649,2]
[390658634,1760113839303,-500.0,0.00024649,2]
[390658635,1760113839312,-285.34791419,0.00024649,2]
[390658636,1760113839322,-200.0,0.00024658,15]
[390658637,1760113839331,-380.0,0.00024658,2]
[390658638,1760113839341,-2819.74286723,0.000248,2]
[390658639,1760113839351,-604.31053088,0.000248,2]
[390658640,1760113839361,-500.0,0.00024873,2]
[390658641,1760113839371,-592.89641741,0.00024873,2]
[390658642,1760113839380,-500.0,0.00024873,2]
[390658643,1760113839390,-500.0,0.00024873,2]
[390658644,1760113839399,-566.36803254,0.00024873,2]
[390658645,1760113839409,-500.0,0.00024873,2]
[390658646,1760113839419,-1152.0,0.00024878,2]
[390658647,1760113839428,-306246.720561,0.000249,2]
[390658648,1760113839438,-5398.27,0.00024966,2]
[390658649,1760113839447,-298.03512572,0.0002499,10]
[390658650,1760113839457,-163.0,0.00025,7]
[390658651,1760113839467,-200.0,0.000251,7]
[390658652,1760113839477,-11748.09123647,0.00025122,2]
[390658653,1760113839487,-2500.0,0.00025164,2]
[390658654,1760113839496,-560.0,0.00025194,2]
[390658655,1760113839506,-151.73338094,0.00025371,2]
[390658656,1760113839516,-151.0,0.00025371,2]
[390658657,1760113839526,-151.0,0.00025371,2]
[390658658,1760113839536,-151.0,0.00025371,2]
[390658659,1760113839545,-665.0,0.00025371,2]
[390658661,1760113839556,-151.0,0.00025371,2]
[390658663,1760113839565,-151.0,0.00025371,2]
[390658664,1760113839575,-156.98619799,0.00025371,2]
[390658665,1760113839584,-1000.0,0.00025421,2]
[390658666,1760113839593,-1000.0,0.00025421,2]
[390658667,1760113839603,-1000.0,0.00025421,2]
[390658668,1760113839612,-918.37480096,0.00025421,2]
[390658669,1760113839621,-152.89909571,0.00025422,2]
[390658670,1760113839630,-151.0,0.00025426,2]
[390658671,1760113839641,-151.0,0.00025426,2]
[390658672,1760113839651,-665.0,0.00025426,2]
[390658673,1760113839660,-151.0,0.00025426,2]
[390658674,1760113839670,-151.0,0.00025426,2]
[390658675,1760113839680,-151.0,0.00025481,2]
[390658676,1760113839689,-198.0,0.00025481,2]
[390658677,1760113839700,-665.0,0.00025481,2]
[390658678,1760113839709,-198.0,0.00025481,2]
[390658680,1760113839719,-198.0,0.00025481,2]
[390658682,1760113839730,-151.0,0.00025535,2]
[390658683,1760113839739,-665.0,0.00025535,2]
[390658684,1760113839749,-152.89660167,0.0002559,2]
[390658686,1760113839759,-665.0,0.0002559,2]
[390658688,1760113839769,-6496.93223986,0.00025643,3]
[390658690,1760113839784,-665.0,0.00025645,2]
[390658692,1760113839799,-6496.89,0.00025653,3]
[390658694,1760113839810,-665.0,0.000257,2]
[390658696,1760113839820,-3000.0,0.00025712,2]
[390658698,1760113839830,-660.0,0.00025742,2]
[390658700,1760113839844,-665.0,0.00025755,2]
[390658702,1760113839866,-151.0,0.00025809,2]
[390658703,1760113839876,-152.25446761,0.00025809,2]
[390658704,1760113839886,-151.0,0.00025809,2]
[390658705,1760113839897,-156.7887732,0.00025809,2]
[390658706,1760113839906,-261.13241851,0.00025809,2]
[390658707,1760113839916,-154.52963647,0.00025809,2]
[390658708,1760113839927,-152.12694981,0.00025809,2]
[390658709,1760113839937,-665.0,0.00025809,2]
[390658711,1760113839946,-151.0,0.00025864,2]
[390658712,1760113839956,-151.0,0.00025864,2]
[390658713,1760113839967,-665.0,0.00025864,2]
[390658715,1760113839982,-168.0,0.00025905,2]
[390658716,1760113839991,-199.38589367,0.00025919,2]
[390658717,1760113840001,-151.0,0.00025919,2]
[390658719,1760113840011,-665.0,0.00025919,2]
[390658720,1760113840020,-306246.720561,0.00025943,2]
[390658722,1760113840033,-604.31053088,0.00025943,2]
[390658724,1760113840042,-517.45490226,0.00025949,2]
[390658725,1760113840052,-405.51853183,0.00025949,2]
[390658726,1760113840061,-1500.0,0.00025968,2]
[390658727,1760113840070,-1500.0,0.00025968,2]
[390658728,1760113840079,-1500.0,0.00025968,2]
[390658729,1760113840088,-151.0,0.00025973,2]
[390658730,1760113840098,-665.0,0.00025974,2]
[390658731,1760113840107,-23095.97892836,0.00026,60]
[390658732,1760113840117,-6000.00000131,0.00026,30]
[390658734,1760113840126,-500.0,0.00026027,4]
[390658736,1760113840135,-192.40420351,0.00026028,2]
[390658737,1760113840143,-665.0,0.00026029,2]
[390658739,1760113840153,-665.0,0.00026083,2]
[390658740,1760113840161,-665.0,0.00026138,2]
[390658742,1760113840171,-192.47399803,0.0002616,2]
[390658744,1760113840180,-500.0,0.00026173,2]
[390658745,1760113840189,-552.88844342,0.00026173,2]
[390658747,1760113840199,-200.0,0.00026179,10]
[390658749,1760113840208,-200.0,0.00026179,10]
[390658751,1760113840217,-169.384631,0.00026179,10]
[390658752,1760113840226,-151.0,0.00026189,2]
[390658754,1760113840235,-199.55682446,0.00026189,2]
[390658756,1760113840244,-980.0,0.00026189,2]
[390658757,1760113840253,-2159.0,0.00026189,2]
[390658759,1760113840262,-630.0,0.00026189,2]
[390658761,1760113840271,-411.0,0.00026189,2]
[390658762,1760113840282,-665.0,0.00026193,2]
[390658764,1760113840291,-665.0,0.00026248,2]
[390658766,1760113840301,-3500.0,0.0002626,2]
[390658768,1760113840310,-760.0,0.0002629,2]
[390658769,1760113840319,-665.0,0.00026303,2]
[390658771,1760113840328,-665.0,0.00026357,2]
[390658773,1760113840337,-665.0,0.00026412,2]
[390658775,1760113840346,-665.0,0.00026467,2]
[390658776,1760113840357,-2000.0,0.00026516,2]
[390658778,1760113840366,-1501.46186656,0.00026516,2]
[390658780,1760113840375,-303.77702373,0.00026516,2]
[390658781,1760113840385,-665.0,0.00026522,2]
[390658783,1760113840394,-665.0,0.00026576,2]
[390658785,1760113840403,-604.31053088,0.00026589,2]
[390658787,1760113840412,-156.49,0.00026599,7]
[390658788,1760113840422,-1945.04059731,0.0002662,2]
[390658790,1760113840432,-684.0,0.00026631,2]
[390658792,1760113840441,-1000.0,0.00026721,2]
[390658794,1760113840450,-1460.82672914,0.00026746,2]
[390658795,1760113840459,-6747.84,0.00026749,2]
[390658797,1760113840468,-2080.3,0.00026791,2]
[390658799,1760113840477,-4000.0,0.00026808,2]
[390658800,1760113840487,-860.0,0.00026838,2]
[390658802,1760113840499,-22541.97202982,0.00027,30]
[390658804,1760113840508,-3410.97742788,0.00027,5]
[390658806,1760113840518,-600.0,0.00027,14]
[390658807,1760113840528,-2500.0,0.00027064,2]
[390658809,1760113840537,-1460.82672914,0.00027108,2]
[390658810,1760113840546,-160.0,0.00027144,3]
[390658812,1760113840556,-298.03512572,0.00027144,3]
[390658814,1760113840565,-160.0,0.00027144,3]
[390658815,1760113840574,-160.0,0.0002715,3]
[390658817,1760113840584,-1613.0,0.00027158,2]
[390658819,1760113840594,-19490.67,0.000272,3]
[390658821,1760113840603,-1500.0,0.00027268,2]
[390658823,1760113840612,-604.31053088,0.0002727,2]
[390658824,1760113840621,-1013.506465,0.0002728,5]
[390658826,1760113840630,-150.0,0.000273,5]
[390658828,1760113840640,-1000.0,0.000273,5]
[390658829,1760113840648,-152.89909571,0.00027317,2]
[390658831,1760113840658,-11748.09123647,0.00027344,2]
[390658833,1760113840667,-1460.82672916,0.00027351,2]
[390658835,1760113840676,-4500.0,0.00027356,2]
[390658837,1760113840686,-715.28,0.00027366,2]
[390658838,1760113840695,-500.0,0.00027373,2]
[390658840,1760113840705,-517.02984979,0.00027373,2]
[390658842,1760113840715,-500.0,0.00027373,2]
[390658844,1760113840724,-500.0,0.00027373,2]
[390658846,1760113840733,-500.0,0.00027373,2]
[390658847,1760113840742,-500.0,0.00027373,2]
[390658849,1760113840751,-960.0,0.00027386,2]
[390658850,1760113840760,-1812.93159264,0.00027387,2]
[390658851,1760113840770,-198.25310071,0.0002739,2]
[390658853,1760113840780,-150.0,0.0002739,2]
[390658854,1760113840789,-500.0,0.00027397,60]
[390658856,1760113840799,-500.0,0.00027397,60]
[390658858,1760113840809,-500.0,0.00027397,60]
[390658860,1760113840818,-500.0,0.00027397,60]
[390658861,1760113840827,-500.0,0.00027397,60]
[390658863,1760113840836,-500.0,0.00027397,60]
[390658865,1760113840848,-500.0,0.00027397,60]
[390658866,1760113840857,-500.0,0.00027397,60]
[390658868,1760113840866,-500.0,0.00027397,60]
[390658870,1760113840875,-500.0,0.00027397,60]
[390658871,1760113841021,-500.0,0.00027397,60]
[390658872,1760113841063,-500.0,0.00027397,2]
[390658873,1760113841073,-500.0,0.00027397,2]
[390658874,1760113841082,-500.0,0.00027397,2]
[390658875,1760113841092,-500.0,0.00027397,2]
[390658876,1760113841101,-500.0,0.00027397,2]
[390658877,1760113841111,-500.0,0.00027397,2]
[390658878,1760113841120,-409.69387175,0.00027397,2]
[390658879,1760113841129,-500.0,0.00027397,2]
[390658880,1760113841138,-528.87535178,0.00027397,2]
[390658881,1760113841148,-327.53727812,0.00027397,2]
[390658882,1760113841157,-500.0,0.00027397,60]